[Event "Titled Tuesday Blitz October 11 Early 2022"]
[White "Zemlyanskii, Ivan"]
[Black "Mamedov, Rauf"]
[WhiteFideId "24249971"]
[BlackFideId "13401653"]
[WhiteElo "2107"]
[BlackElo "2650"]
[Result "0-1"]
[Round "04"]
[TimeControl "180+1"]
[Date "2022.10.11"]
[WhiteClock "0:00:22"]
[BlackClock "0:01:12"]

1. d4 {[%clk 0:03:00]}  d5 {[%clk 0:02:59]} 2. c4 {[%clk 0:03:01]}  e6 {[%clk 0:02:59]} 3. Nf3 {[%clk 0:02:57]}  Nf6 {[%clk 0:03:00]} 4. Qc2 {[%clk 0:02:58]}  c5 {[%clk 0:02:58]} 5. dxc5 {[%clk 0:02:57]}  Nc6 {[%clk 0:02:56]} 6. cxd5 {[%clk 0:02:52]}  Qxd5 {[%clk 0:02:55]} 7. Nc3 {[%clk 0:02:48]}  Qxc5 {[%clk 0:02:55]} 8. e4 {[%clk 0:02:48]}  Ng4 {[%clk 0:02:50]} 9. h3 {[%clk 0:02:37]}  Nge5 {[%clk 0:02:46]} 10. Nxe5 {[%clk 0:02:36]}  Qxe5 {[%clk 0:02:47]} 11. Be3 {[%clk 0:02:34]}  Bb4 {[%clk 0:02:36]} 12. a3 {[%clk 0:02:22]}  Ba5 {[%clk 0:02:35]} 13. Bd3 {[%clk 0:02:14]}  Bb6 {[%clk 0:02:33]} 14. Bxb6 {[%clk 0:02:05]}  axb6 {[%clk 0:02:34]} 15. O-O {[%clk 0:02:05]}  O-O {[%clk 0:02:27]} 16. f4 {[%clk 0:02:03]}  Qc5+ {[%clk 0:02:25]} 17. Kh2 {[%clk 0:01:55]}  Nd4 {[%clk 0:02:25]} 18. Qd1 {[%clk 0:01:48]}  Rd8 {[%clk 0:02:24]} 19. e5 {[%clk 0:01:47]}  Nf5 {[%clk 0:01:52]} 20. Qe2 {[%clk 0:01:46]}  Bd7 {[%clk 0:01:51]} 21. Ne4 {[%clk 0:01:38]}  Qd4 {[%clk 0:01:43]} 22. Ng5 {[%clk 0:01:19]}  h6 {[%clk 0:01:36]} 23. Rad1 {[%clk 0:01:11]}  Ba4 {[%clk 0:01:26]} 24. Bc2 {[%clk 0:00:57]}  Qxb2 {[%clk 0:01:22]} 25. Rxd8+ {[%clk 0:00:42]}  Rxd8 {[%clk 0:01:22]} 26. Nxf7 {[%clk 0:00:38]}  Kxf7 {[%clk 0:01:17]} 27. Qh5+ {[%clk 0:00:34]}  g6 {[%clk 0:01:17]} 28. Qf3 {[%clk 0:00:33]}  Qxc2 {[%clk 0:01:17]} 29. Qxb7+ {[%clk 0:00:29]}  Rd7 {[%clk 0:01:16]} 30. Qb8 {[%clk 0:00:23]}  Bc6 {[%clk 0:01:14]} 31. Rg1 {[%clk 0:00:22]}  Rd2 {[%clk 0:01:12]} 32. Qc7+ {[%clk 0:00:22]}  Ne7 {[%clk 0:01:12]} 0-1


[Site "https://www.chess.com"]

[Event "Titled Tuesday Blitz October 11 Early 2022"]
[White "Zierk, Steven"]
[Black "Halkias, Stelios"]
[WhiteFideId "2034255"]
[BlackFideId "4201809"]
[WhiteElo "2494"]
[BlackElo "2453"]
[Result "1-0"]
[Round "04"]
[TimeControl "180+1"]
[Date "2022.10.11"]
[WhiteClock "0:00:58"]
[BlackClock "0:00:10"]

1. e4 {[%clk 0:02:57]}  c5 {[%clk 0:02:59]} 2. Nf3 {[%clk 0:02:57]}  d6 {[%clk 0:02:59]} 3. d4 {[%clk 0:02:57]}  cxd4 {[%clk 0:03:00]} 4. Nxd4 {[%clk 0:02:58]}  Nf6 {[%clk 0:03:00]} 5. Nc3 {[%clk 0:02:58]}  a6 {[%clk 0:03:00]} 6. h3 {[%clk 0:02:58]}  e5 {[%clk 0:03:00]} 7. Nde2 {[%clk 0:02:58]}  h5 {[%clk 0:02:59]} 8. Bg5 {[%clk 0:02:56]}  Be6 {[%clk 0:02:59]} 9. Bxf6 {[%clk 0:02:49]}  Qxf6 {[%clk 0:02:59]} 10. Nd5 {[%clk 0:02:49]}  Qd8 {[%clk 0:02:58]} 11. Nec3 {[%clk 0:02:50]}  Nd7 {[%clk 0:02:58]} 12. Bc4 {[%clk 0:02:48]}  Rc8 {[%clk 0:02:55]} 13. Qe2 {[%clk 0:02:44]}  g6 {[%clk 0:02:49]} 14. O-O {[%clk 0:02:42]}  Bg7 {[%clk 0:02:41]} 15. Ne3 {[%clk 0:02:38]}  Nc5 {[%clk 0:02:21]} 16. Bxe6 {[%clk 0:02:29]}  Nxe6 {[%clk 0:02:21]} 17. Ncd5 {[%clk 0:02:28]}  Nf4 {[%clk 0:02:14]} 18. Qf3 {[%clk 0:02:14]}  Nxd5 {[%clk 0:01:42]} 19. Nxd5 {[%clk 0:02:15]}  Rxc2 {[%clk 0:01:42]} 20. Qb3 {[%clk 0:02:15]}  Qc8 {[%clk 0:01:41]} 21. Rfd1 {[%clk 0:02:06]}  Qc4 {[%clk 0:01:16]} 22. Qxb7 {[%clk 0:02:03]}  O-O {[%clk 0:01:14]} 23. Ne3 {[%clk 0:02:00]}  Qc6 {[%clk 0:01:14]} 24. Qxc6 {[%clk 0:01:58]}  Rxc6 {[%clk 0:01:13]} 25. Rd3 {[%clk 0:01:58]}  Rfc8 {[%clk 0:01:12]} 26. Rad1 {[%clk 0:01:57]}  Bf8 {[%clk 0:01:11]} 27. b3 {[%clk 0:01:57]}  Rc1 {[%clk 0:01:04]} 28. Nc4 {[%clk 0:01:51]}  Rxd1+ {[%clk 0:01:03]} 29. Rxd1 {[%clk 0:01:52]}  Rc6 {[%clk 0:01:03]} 30. Kf1 {[%clk 0:01:48]}  f5 {[%clk 0:01:03]} 31. exf5 {[%clk 0:01:42]}  gxf5 {[%clk 0:01:02]} 32. f4 {[%clk 0:01:43]}  Rc5 {[%clk 0:00:38]} 33. Nxd6 {[%clk 0:01:39]}  Bxd6 {[%clk 0:00:32]} 34. Rxd6 {[%clk 0:01:40]}  Rc1+ {[%clk 0:00:32]} 35. Ke2 {[%clk 0:01:40]}  e4 {[%clk 0:00:27]} 36. Rxa6 {[%clk 0:01:35]}  Rc2+ {[%clk 0:00:26]} 37. Kf1 {[%clk 0:01:35]}  Kf7 {[%clk 0:00:24]} 38. a4 {[%clk 0:01:24]}  h4 {[%clk 0:00:24]} 39. Rd6 {[%clk 0:01:16]}  Rb2 {[%clk 0:00:23]} 40. Rd5 {[%clk 0:01:15]}  Ke6 {[%clk 0:00:23]} 41. Re5+ {[%clk 0:01:16]}  Kf6 {[%clk 0:00:23]} 42. Rb5 {[%clk 0:01:16]}  e3 {[%clk 0:00:23]} 43. a5 {[%clk 0:01:10]}  Rf2+ {[%clk 0:00:22]} 44. Ke1 {[%clk 0:01:10]}  Ke6 {[%clk 0:00:12]} 45. Re5+ {[%clk 0:01:05]}  Kd6 {[%clk 0:00:13]} 46. Rxe3 {[%clk 0:01:04]}  Rxg2 {[%clk 0:00:11]} 47. b4 {[%clk 0:00:58]}  Rb2 {[%clk 0:00:11]} 48. Ra3 {[%clk 0:00:58]}  Rxb4 {[%clk 0:00:10]} 49. a6 {[%clk 0:00:58]} 1-0


[Site "https://www.chess.com"]

[Event "Titled Tuesday Blitz October 11 Early 2022"]
[White "Zilleruelo Irizarry, Diego"]
[Black "Obrien, Matthew"]
[WhiteFideId "3101460"]
[BlackFideId "2059150"]
[WhiteElo "1998"]
[BlackElo "2542"]
[Result "0-1"]
[Round "04"]
[TimeControl "180+1"]
[Date "2022.10.12"]
[WhiteClock "0:00:09"]
[BlackClock "0:00:08"]

1. e4 {[%clk 0:03:00]}  c5 {[%clk 0:02:59]} 2. Nf3 {[%clk 0:03:00]}  d6 {[%clk 0:02:59]} 3. d4 {[%clk 0:03:00]}  cxd4 {[%clk 0:03:00]} 4. Qxd4 {[%clk 0:03:00]}  Nc6 {[%clk 0:03:00]} 5. Qe3 {[%clk 0:03:00]}  g6 {[%clk 0:02:53]} 6. Be2 {[%clk 0:02:58]}  Bg4 {[%clk 0:02:36]} 7. O-O {[%clk 0:02:55]}  Nf6 {[%clk 0:02:30]} 8. Rd1 {[%clk 0:02:55]}  Qa5 {[%clk 0:02:24]} 9. Nc3 {[%clk 0:02:55]}  Bg7 {[%clk 0:02:19]} 10. a3 {[%clk 0:02:55]}  O-O {[%clk 0:02:18]} 11. Bd2 {[%clk 0:02:48]}  Qc7 {[%clk 0:02:04]} 12. Rac1 {[%clk 0:02:34]}  Bxf3 {[%clk 0:01:52]} 13. Bxf3 {[%clk 0:02:35]}  Ne5 {[%clk 0:01:52]} 14. Be2 {[%clk 0:02:35]}  Nc4 {[%clk 0:01:52]} 15. Bxc4 {[%clk 0:02:34]}  Qxc4 {[%clk 0:01:52]} 16. b3 {[%clk 0:02:28]}  Qa6 {[%clk 0:01:40]} 17. a4 {[%clk 0:02:23]}  Qc6 {[%clk 0:01:29]} 18. Nd5 {[%clk 0:02:01]}  Nxd5 {[%clk 0:01:29]} 19. exd5 {[%clk 0:02:01]}  Qxd5 {[%clk 0:01:29]} 20. Bc3 {[%clk 0:02:01]}  Qe6 {[%clk 0:01:23]} 21. Qxe6 {[%clk 0:01:58]}  fxe6 {[%clk 0:01:24]} 22. Bxg7 {[%clk 0:01:58]}  Kxg7 {[%clk 0:01:25]} 23. Rd4 {[%clk 0:01:58]}  Rf5 {[%clk 0:01:22]} 24. Rb4 {[%clk 0:01:57]}  b6 {[%clk 0:01:22]} 25. Rc4 {[%clk 0:01:58]}  Rc5 {[%clk 0:01:16]} 26. Re4 {[%clk 0:01:58]}  Kf7 {[%clk 0:01:07]} 27. c4 {[%clk 0:01:55]}  Rac8 {[%clk 0:00:56]} 28. Rce1 {[%clk 0:01:53]}  e5 {[%clk 0:00:48]} 29. f4 {[%clk 0:01:52]}  Ke6 {[%clk 0:00:47]} 30. g3 {[%clk 0:01:33]}  a6 {[%clk 0:00:45]} 31. Rc1 {[%clk 0:01:05]}  b5 {[%clk 0:00:42]} 32. fxe5 {[%clk 0:01:00]}  dxe5 {[%clk 0:00:34]} 33. axb5 {[%clk 0:00:52]}  axb5 {[%clk 0:00:33]} 34. Rce1 {[%clk 0:00:48]}  bxc4 {[%clk 0:00:33]} 35. bxc4 {[%clk 0:00:49]}  Rb8 {[%clk 0:00:30]} 36. R1e2 {[%clk 0:00:47]}  Rb4 {[%clk 0:00:28]} 37. Rc2 {[%clk 0:00:38]}  h5 {[%clk 0:00:27]} 38. Kf2 {[%clk 0:00:34]}  Kf5 {[%clk 0:00:27]} 39. Re3 {[%clk 0:00:33]}  e4 {[%clk 0:00:26]} 40. Rec3 {[%clk 0:00:33]}  Ke5 {[%clk 0:00:22]} 41. Ke3 {[%clk 0:00:33]}  Ra4 {[%clk 0:00:22]} 42. h4 {[%clk 0:00:32]}  e6 {[%clk 0:00:21]} 43. Rc1 {[%clk 0:00:33]}  Ra2 {[%clk 0:00:21]} 44. Rb1 {[%clk 0:00:24]}  Rg2 {[%clk 0:00:20]} 45. Rb5 {[%clk 0:00:19]}  Rxg3+ {[%clk 0:00:20]} 46. Kd2 {[%clk 0:00:19]}  Rxc3 {[%clk 0:00:14]} 47. Rxc5+ {[%clk 0:00:19]}  Kd4 {[%clk 0:00:14]} 48. Rg5 {[%clk 0:00:19]}  e3+ {[%clk 0:00:11]} 49. Ke2 {[%clk 0:00:19]}  Rc2+ {[%clk 0:00:11]} 50. Kd1 {[%clk 0:00:19]}  Rxc4 {[%clk 0:00:10]} 51. Rxg6 {[%clk 0:00:19]}  e5 {[%clk 0:00:10]} 52. Rd6+ {[%clk 0:00:17]}  Ke4 {[%clk 0:00:10]} 53. Rh6 {[%clk 0:00:16]}  Kd3 {[%clk 0:00:08]} 54. Rd6+ {[%clk 0:00:15]}  Rd4 {[%clk 0:00:08]} 55. Rh6 {[%clk 0:00:16]}  Ke4+ {[%clk 0:00:08]} 56. Ke1 {[%clk 0:00:16]}  Ra4 {[%clk 0:00:06]} 57. Rxh5 {[%clk 0:00:15]}  Ra1+ {[%clk 0:00:06]} 58. Ke2 {[%clk 0:00:15]}  Ra2+ {[%clk 0:00:07]} 59. Ke1 {[%clk 0:00:16]}  Kf3 {[%clk 0:00:05]} 60. Rf5+ {[%clk 0:00:14]}  Ke4 {[%clk 0:00:06]} 61. Rh5 {[%clk 0:00:14]}  Kd3 {[%clk 0:00:06]} 62. Kf1 {[%clk 0:00:08]}  Ra1+ {[%clk 0:00:06]} 63. Kg2 {[%clk 0:00:07]}  e2 {[%clk 0:00:07]} 64. Rxe5 {[%clk 0:00:05]}  e1=Q {[%clk 0:00:07]} 65. Rxe1 {[%clk 0:00:05]}  Rxe1 {[%clk 0:00:08]} 66. Kg3 {[%clk 0:00:05]}  Ke4 {[%clk 0:00:08]} 67. Kg4 {[%clk 0:00:06]}  Rg1+ {[%clk 0:00:08]} 68. Kh5 {[%clk 0:00:06]}  Kf4 {[%clk 0:00:08]} 69. Kh6 {[%clk 0:00:07]}  Rh1 {[%clk 0:00:08]} 70. h5 {[%clk 0:00:08]}  Kg4 {[%clk 0:00:08]} 71. Kg6 {[%clk 0:00:09]}  Rxh5 {[%clk 0:00:08]} 0-1


[Site "https://www.chess.com"]

[Event "Titled Tuesday Blitz October 11 Early 2022"]
[White "Zou, Chen"]
[Black "Villamayor, Buenaventura"]
[WhiteFideId "8610959"]
[BlackFideId "5200393"]
[WhiteElo "2325"]
[BlackElo "2301"]
[Result "1-0"]
[Round "04"]
[TimeControl "180+1"]
[Date "2022.10.12"]
[WhiteClock "0:00:08"]
[BlackClock "0:00:01"]

1. e4 {[%clk 0:03:00]}  c5 {[%clk 0:02:54]} 2. Nf3 {[%clk 0:03:00]}  Nc6 {[%clk 0:02:55]} 3. d4 {[%clk 0:03:00]}  cxd4 {[%clk 0:02:55]} 4. Nxd4 {[%clk 0:03:01]}  Nf6 {[%clk 0:02:56]} 5. Nc3 {[%clk 0:03:00]}  e5 {[%clk 0:02:56]} 6. Ndb5 {[%clk 0:02:56]}  d6 {[%clk 0:02:57]} 7. Bg5 {[%clk 0:02:55]}  a6 {[%clk 0:02:57]} 8. Na3 {[%clk 0:02:54]}  b5 {[%clk 0:02:57]} 9. Nd5 {[%clk 0:02:54]}  Be7 {[%clk 0:02:58]} 10. Bxf6 {[%clk 0:02:54]}  Bxf6 {[%clk 0:02:58]} 11. c3 {[%clk 0:02:54]}  Ne7 {[%clk 0:02:58]} 12. Nxf6+ {[%clk 0:02:53]}  gxf6 {[%clk 0:02:59]} 13. Bd3 {[%clk 0:02:53]}  Bb7 {[%clk 0:02:59]} 14. Qe2 {[%clk 0:02:49]}  d5 {[%clk 0:02:56]} 15. O-O-O {[%clk 0:02:12]}  Qb6 {[%clk 0:02:45]} 16. Kb1 {[%clk 0:01:48]}  O-O-O {[%clk 0:02:24]} 17. exd5 {[%clk 0:01:38]}  Nxd5 {[%clk 0:02:22]} 18. g3 {[%clk 0:01:33]}  Kb8 {[%clk 0:02:15]} 19. Be4 {[%clk 0:01:27]}  Qc5 {[%clk 0:02:11]} 20. Nc2 {[%clk 0:01:23]}  a5 {[%clk 0:01:43]} 21. Rd3 {[%clk 0:01:10]}  Nb6 {[%clk 0:01:21]} 22. Rhd1 {[%clk 0:01:09]}  Rxd3 {[%clk 0:01:19]} 23. Rxd3 {[%clk 0:00:51]}  Ba6 {[%clk 0:01:09]} 24. Rd1 {[%clk 0:00:45]}  Qc7 {[%clk 0:01:02]} 25. Ne3 {[%clk 0:00:44]}  Ka7 {[%clk 0:00:46]} 26. Qf3 {[%clk 0:00:37]}  Rd8 {[%clk 0:00:31]} 27. Bxh7 {[%clk 0:00:31]}  b4 {[%clk 0:00:28]} 28. Rxd8 {[%clk 0:00:28]}  Qxd8 {[%clk 0:00:24]} 29. cxb4 {[%clk 0:00:21]}  axb4 {[%clk 0:00:22]} 30. Qd1 {[%clk 0:00:13]}  Qh8 {[%clk 0:00:17]} 31. Be4 {[%clk 0:00:13]}  Qc8 {[%clk 0:00:14]} 32. h4 {[%clk 0:00:12]}  Qc5 {[%clk 0:00:08]} 33. h5 {[%clk 0:00:11]}  Bb5 {[%clk 0:00:04]} 34. h6 {[%clk 0:00:10]}  Ba4 {[%clk 0:00:05]} 35. Qc1 {[%clk 0:00:10]}  Qd6 {[%clk 0:00:01]} 36. h7 {[%clk 0:00:09]}  Qd8 {[%clk 0:00:01]} 37. Qh1 {[%clk 0:00:08]} 1-0


[Site "https://www.chess.com"]

[Event "Titled Tuesday Blitz October 11 Early 2022"]
[White "Acosta Cruz, Oscar Yosimar"]
[Black "Lauridsen, Jesper Morch"]
[WhiteFideId "5111269"]
[BlackFideId "1401890"]
[WhiteElo "2147"]
[BlackElo "2166"]
[Result "0-1"]
[Round "05"]
[TimeControl "180+1"]
[Date "2022.10.12"]
[WhiteClock "0:00:04"]
[BlackClock "0:00:12"]

1. e4 {[%clk 0:03:00]}  c5 {[%clk 0:02:59]} 2. Nf3 {[%clk 0:03:00]}  e6 {[%clk 0:02:59]} 3. c4 {[%clk 0:02:58]}  Nc6 {[%clk 0:02:58]} 4. Nc3 {[%clk 0:02:57]}  Nf6 {[%clk 0:02:57]} 5. d4 {[%clk 0:02:55]}  cxd4 {[%clk 0:02:56]} 6. Nxd4 {[%clk 0:02:55]}  Bb4 {[%clk 0:02:57]} 7. f3 {[%clk 0:02:44]}  d5 {[%clk 0:02:43]} 8. Nxc6 {[%clk 0:02:43]}  bxc6 {[%clk 0:02:42]} 9. cxd5 {[%clk 0:02:38]}  exd5 {[%clk 0:02:39]} 10. Bg5 {[%clk 0:02:29]}  d4 {[%clk 0:01:32]} 11. Qa4 {[%clk 0:02:02]}  Rb8 {[%clk 0:01:31]} 12. O-O-O {[%clk 0:01:45]}  Qb6 {[%clk 0:01:14]} 13. Ne2 {[%clk 0:00:56]}  Qc5+ {[%clk 0:01:11]} 14. Kb1 {[%clk 0:00:51]}  Qxg5 {[%clk 0:01:10]} 15. Nxd4 {[%clk 0:00:44]}  O-O {[%clk 0:01:00]} 16. Bc4 {[%clk 0:00:40]}  Qxg2 {[%clk 0:00:47]} 17. Rdg1 {[%clk 0:00:40]}  Qf2 {[%clk 0:00:43]} 18. Nc2 {[%clk 0:00:36]}  Bc5 {[%clk 0:00:35]} 19. Rf1 {[%clk 0:00:27]}  Qd2 {[%clk 0:00:29]} 20. Qxc6 {[%clk 0:00:23]}  Bd4 {[%clk 0:00:26]} 21. b3 {[%clk 0:00:20]}  Be5 {[%clk 0:00:21]} 22. f4 {[%clk 0:00:17]}  Bc3 {[%clk 0:00:15]} 23. e5 {[%clk 0:00:16]}  Bb7 {[%clk 0:00:15]} 24. Qc7 {[%clk 0:00:13]}  Be4 {[%clk 0:00:14]} 25. Rc1 {[%clk 0:00:11]}  Rfc8 {[%clk 0:00:14]} 26. Qe7 {[%clk 0:00:10]}  Rxc4 {[%clk 0:00:13]} 27. exf6 {[%clk 0:00:07]}  Bxf6 {[%clk 0:00:12]} 28. Qd6 {[%clk 0:00:04]}  Bxc2+ {[%clk 0:00:12]} 0-1


[Site "https://www.chess.com"]

[Event "Titled Tuesday Blitz October 11 Early 2022"]
[White "Aguilar, Juan"]
[Black "Ardila, Oscar Humberto"]
[WhiteFideId "3800091"]
[BlackFideId "4404742"]
[WhiteElo "2380"]
[BlackElo "1898"]
[Result "0-1"]
[Round "05"]
[TimeControl "180+1"]
[Date "2022.10.12"]
[WhiteClock "0:00:01"]
[BlackClock "0:00:13"]

1. d4 {[%clk 0:03:00]}  Nf6 {[%clk 0:02:59]} 2. c4 {[%clk 0:03:00]}  e6 {[%clk 0:02:59]} 3. Nf3 {[%clk 0:02:59]}  Bb4+ {[%clk 0:02:59]} 4. Nbd2 {[%clk 0:02:58]}  O-O {[%clk 0:02:58]} 5. a3 {[%clk 0:02:57]}  Be7 {[%clk 0:02:57]} 6. e4 {[%clk 0:02:56]}  d6 {[%clk 0:02:57]} 7. b4 {[%clk 0:02:51]}  Nbd7 {[%clk 0:02:55]} 8. Bb2 {[%clk 0:02:48]}  a5 {[%clk 0:02:53]} 9. g3 {[%clk 0:02:42]}  c6 {[%clk 0:02:44]} 10. Bg2 {[%clk 0:02:40]}  Qc7 {[%clk 0:02:44]} 11. O-O {[%clk 0:02:39]}  e5 {[%clk 0:02:43]} 12. Qb3 {[%clk 0:02:20]}  Re8 {[%clk 0:02:34]} 13. Rac1 {[%clk 0:02:12]}  Bf8 {[%clk 0:02:23]} 14. Nh4 {[%clk 0:01:56]}  a4 {[%clk 0:02:11]} 15. Qc2 {[%clk 0:01:48]}  exd4 {[%clk 0:01:53]} 16. Bxd4 {[%clk 0:01:47]}  c5 {[%clk 0:01:54]} 17. Bc3 {[%clk 0:01:25]}  Ne5 {[%clk 0:01:48]} 18. h3 {[%clk 0:01:17]}  Be6 {[%clk 0:01:41]} 19. Ba1 {[%clk 0:00:38]}  cxb4 {[%clk 0:01:37]} 20. axb4 {[%clk 0:00:38]}  b5 {[%clk 0:01:19]} 21. c5 {[%clk 0:00:29]}  dxc5 {[%clk 0:01:19]} 22. bxc5 {[%clk 0:00:30]}  Nc4 {[%clk 0:01:10]} 23. f4 {[%clk 0:00:25]}  Bxc5+ {[%clk 0:01:09]} 24. Kh2 {[%clk 0:00:24]}  Ba3 {[%clk 0:00:48]} 25. e5 {[%clk 0:00:17]}  Bxc1 {[%clk 0:00:45]} 26. Rxc1 {[%clk 0:00:15]}  Nd5 {[%clk 0:00:39]} 27. f5 {[%clk 0:00:15]}  Nde3 {[%clk 0:00:38]} 28. Qe4 {[%clk 0:00:08]}  Nxg2 {[%clk 0:00:38]} 29. Nxg2 {[%clk 0:00:05]}  Nxd2 {[%clk 0:00:30]} 30. Rxc7 {[%clk 0:00:01]}  Nxe4 {[%clk 0:00:29]} 31. fxe6 {[%clk 0:00:01]}  Rxe6 {[%clk 0:00:20]} 32. Nf4 {[%clk 0:00:01]}  Ree8 {[%clk 0:00:19]} 33. e6 {[%clk 0:00:01]}  Rf8 {[%clk 0:00:13]} 0-1


[Site "https://www.chess.com"]

[Event "Titled Tuesday Blitz October 11 Early 2022"]
[White "Ali Abdullahi, Farah"]
[Black "Ianov, Viktor"]
[WhiteFideId "16100212"]
[BlackFideId "14102730"]
[WhiteElo "2303"]
[BlackElo "2152"]
[Result "0-1"]
[Round "05"]
[TimeControl "180+1"]
[Date "2022.10.12"]
[WhiteClock "0:00:12"]
[BlackClock "0:01:01"]

1. d4 {[%clk 0:02:59]}  d6 {[%clk 0:02:59]} 2. Nf3 {[%clk 0:03:00]}  g6 {[%clk 0:02:59]} 3. c4 {[%clk 0:02:59]}  Bg7 {[%clk 0:02:59]} 4. Nc3 {[%clk 0:03:00]}  Bg4 {[%clk 0:02:59]} 5. Bg5 {[%clk 0:02:58]}  Nc6 {[%clk 0:02:56]} 6. e3 {[%clk 0:02:57]}  Nf6 {[%clk 0:02:54]} 7. Bxf6 {[%clk 0:02:57]}  Bxf6 {[%clk 0:02:53]} 8. Be2 {[%clk 0:02:57]}  O-O {[%clk 0:02:52]} 9. O-O {[%clk 0:02:58]}  e5 {[%clk 0:02:48]} 10. h3 {[%clk 0:02:58]}  Bd7 {[%clk 0:02:46]} 11. Nd5 {[%clk 0:02:54]}  Bg7 {[%clk 0:02:43]} 12. Rc1 {[%clk 0:02:51]}  exd4 {[%clk 0:02:41]} 13. exd4 {[%clk 0:02:52]}  Re8 {[%clk 0:02:39]} 14. a3 {[%clk 0:02:51]}  a6 {[%clk 0:02:36]} 15. Re1 {[%clk 0:02:51]}  Ne7 {[%clk 0:02:33]} 16. Bf1 {[%clk 0:02:39]}  c6 {[%clk 0:02:27]} 17. Nc3 {[%clk 0:02:31]}  Be6 {[%clk 0:02:24]} 18. b4 {[%clk 0:02:29]}  d5 {[%clk 0:02:24]} 19. c5 {[%clk 0:02:27]}  b5 {[%clk 0:02:22]} 20. a4 {[%clk 0:02:25]}  Nf5 {[%clk 0:02:18]} 21. Ra1 {[%clk 0:02:20]}  Nh4 {[%clk 0:02:15]} 22. Ne5 {[%clk 0:02:17]}  Qc7 {[%clk 0:02:02]} 23. g3 {[%clk 0:02:02]}  Nf5 {[%clk 0:01:56]} 24. Nf3 {[%clk 0:01:54]}  Nxg3 {[%clk 0:01:50]} 25. fxg3 {[%clk 0:01:49]}  Qxg3+ {[%clk 0:01:50]} 26. Kh1 {[%clk 0:01:42]}  Bxh3 {[%clk 0:01:49]} 27. Bxh3 {[%clk 0:01:39]}  Qxh3+ {[%clk 0:01:48]} 28. Nh2 {[%clk 0:01:38]}  Qxc3 {[%clk 0:01:47]} 29. axb5 {[%clk 0:01:32]}  axb5 {[%clk 0:01:46]} 30. Rc1 {[%clk 0:01:10]}  Qxd4 {[%clk 0:01:41]} 31. Qf3 {[%clk 0:01:09]}  Rxe1+ {[%clk 0:01:36]} 32. Rxe1 {[%clk 0:01:10]}  Qxb4 {[%clk 0:01:36]} 33. Rf1 {[%clk 0:01:09]}  Rf8 {[%clk 0:01:32]} 34. Qf2 {[%clk 0:01:02]}  Bd4 {[%clk 0:01:27]} 35. Qg3 {[%clk 0:00:56]}  Qxc5 {[%clk 0:01:26]} 36. Ng4 {[%clk 0:00:56]}  Bg7 {[%clk 0:01:25]} 37. Ne3 {[%clk 0:00:29]}  Qc3 {[%clk 0:01:22]} 38. Rf3 {[%clk 0:00:28]}  Qd4 {[%clk 0:01:15]} 39. Rf4 {[%clk 0:00:23]}  Qa1+ {[%clk 0:01:12]} 40. Rf1 {[%clk 0:00:21]}  Qe5 {[%clk 0:01:10]} 41. Qf3 {[%clk 0:00:15]}  h5 {[%clk 0:01:07]} 42. Qf2 {[%clk 0:00:13]}  Qe4+ {[%clk 0:01:04]} 43. Kh2 {[%clk 0:00:11]}  Be5+ {[%clk 0:01:04]} 44. Kg1 {[%clk 0:00:10]}  Bd4 {[%clk 0:01:04]} 45. Re1 {[%clk 0:00:10]}  Re8 {[%clk 0:01:04]} 46. Kh2 {[%clk 0:00:07]}  Bxe3 {[%clk 0:01:03]} 47. Qg3 {[%clk 0:00:06]}  Bf4 {[%clk 0:01:01]} 48. Rxe4 {[%clk 0:00:06]}  Rxe4 {[%clk 0:01:01]} 49. Qxf4 {[%clk 0:00:05]}  Rxf4 {[%clk 0:01:01]} 50. Kg3 {[%clk 0:00:06]}  g5 {[%clk 0:01:02]} 51. Kg2 {[%clk 0:00:07]}  b4 {[%clk 0:01:01]} 52. Kg3 {[%clk 0:00:08]}  b3 {[%clk 0:01:01]} 53. Kg2 {[%clk 0:00:09]}  b2 {[%clk 0:01:02]} 54. Kg3 {[%clk 0:00:09]}  b1=Q {[%clk 0:01:01]} 55. Kg2 {[%clk 0:00:10]}  Qc2+ {[%clk 0:01:00]} 56. Kg3 {[%clk 0:00:11]}  Qd3+ {[%clk 0:01:00]} 57. Kg2 {[%clk 0:00:11]}  Qe2+ {[%clk 0:01:00]} 58. Kg3 {[%clk 0:00:11]}  Qe3+ {[%clk 0:01:00]} 59. Kg2 {[%clk 0:00:11]}  Rf2+ {[%clk 0:01:01]} 60. Kg1 {[%clk 0:00:12]}  Qe1# {[%clk 0:01:01]} 0-1


[Site "https://www.chess.com"]

[Event "Titled Tuesday Blitz October 11 Early 2022"]
[White "Asavasaetakul, Chawit"]
[Black "Navalgund, Niranjan"]
[WhiteFideId "6204856"]
[BlackFideId "5030854"]
[WhiteElo "1919"]
[BlackElo "2294"]
[Result "0-1"]
[Round "05"]
[TimeControl "180+1"]
[Date "2022.10.12"]
[WhiteClock "0:00:02"]
[BlackClock "0:01:36"]

1. e4 {[%clk 0:03:00]}  e5 {[%clk 0:02:58]} 2. Nf3 {[%clk 0:03:00]}  Nf6 {[%clk 0:02:59]} 3. Nc3 {[%clk 0:03:00]}  d5 {[%clk 0:02:58]} 4. exd5 {[%clk 0:02:55]}  e4 {[%clk 0:02:58]} 5. Ne5 {[%clk 0:02:41]}  Bd6 {[%clk 0:02:57]} 6. Nc4 {[%clk 0:02:39]}  O-O {[%clk 0:02:56]} 7. Ne3 {[%clk 0:02:39]}  c6 {[%clk 0:02:54]} 8. dxc6 {[%clk 0:02:38]}  Nxc6 {[%clk 0:02:54]} 9. d4 {[%clk 0:02:36]}  exd3 {[%clk 0:02:50]} 10. Bxd3 {[%clk 0:02:36]}  Ne5 {[%clk 0:02:47]} 11. Be2 {[%clk 0:02:29]}  a6 {[%clk 0:02:44]} 12. O-O {[%clk 0:02:29]}  Re8 {[%clk 0:02:43]} 13. b3 {[%clk 0:02:24]}  Qc7 {[%clk 0:02:36]} 14. Bb2 {[%clk 0:02:23]}  Be6 {[%clk 0:02:36]} 15. h3 {[%clk 0:02:21]}  Rad8 {[%clk 0:02:36]} 16. Qc1 {[%clk 0:02:19]}  Ng6 {[%clk 0:02:34]} 17. Rd1 {[%clk 0:02:17]}  Nf4 {[%clk 0:02:31]} 18. Bf3 {[%clk 0:02:03]}  Bxh3 {[%clk 0:02:28]} 19. gxh3 {[%clk 0:02:03]}  Nxh3+ {[%clk 0:02:29]} 20. Kf1 {[%clk 0:01:58]}  Be5 {[%clk 0:02:26]} 21. Ncd5 {[%clk 0:01:55]}  Nxd5 {[%clk 0:02:26]} 22. Rxd5 {[%clk 0:01:54]}  Bxb2 {[%clk 0:02:24]} 23. Qxb2 {[%clk 0:01:55]}  Qh2 {[%clk 0:02:24]} 24. Bg2 {[%clk 0:00:18]}  Qg1+ {[%clk 0:01:51]} 25. Ke2 {[%clk 0:00:18]}  Qxf2+ {[%clk 0:01:51]} 26. Kd3 {[%clk 0:00:18]}  Qxe3+ {[%clk 0:01:51]} 27. Kc4 {[%clk 0:00:19]}  b5+ {[%clk 0:01:47]} 28. Kb4 {[%clk 0:00:18]}  Rxd5 {[%clk 0:01:47]} 29. Bxd5 {[%clk 0:00:19]}  a5+ {[%clk 0:01:44]} 30. Kxa5 {[%clk 0:00:16]}  Qd2+ {[%clk 0:01:38]} 31. b4 {[%clk 0:00:03]}  Qxd5 {[%clk 0:01:38]} 32. Re1 {[%clk 0:00:01]}  Ra8+ {[%clk 0:01:37]} 33. Kb6 {[%clk 0:00:02]}  Rb8+ {[%clk 0:01:36]} 34. Ka5 {[%clk 0:00:02]}  Qa8# {[%clk 0:01:36]} 0-1


[Site "https://www.chess.com"]